bitfinex-derivatives/quotes_BTCF0:USTF0_20251219
["timestamp","ask_amount","ask_price","bid_price","bid_amount"]
[1766158962561,0.0001702,88141.0,88129.0,0.011352]
[1766158962957,0.0001702,88141.0,88131.0,0.0113518]
[1766158963158,0.0001702,88141.0,88133.0,0.0113515]
[1766158963985,0.64842056,88304.0,88141.0,0.0113504]
[1766158963986,0.06078942,88167.0,88141.0,0.0113504]
[1766158964184,0.0171054,88181.0,88158.0,0.0113483]
[1766158964484,0.02530077,88180.0,88156.0,0.0113485]
[1766158964786,0.00576,88181.0,88155.0,0.00384]
[1766158964985,0.08105257,88210.0,88159.0,0.0001702]
[1766158965188,0.0113409,88216.0,88191.0,0.011344]
[1766158965390,0.0113418,88209.0,88183.0,0.0113451]
[1766158965773,0.2816414,88220.0,88192.0,0.0113439]
[1766158965972,0.2816414,88220.0,88197.0,0.0001701]
[1766158966173,0.0001701,88215.0,88197.0,0.0001701]
[1766158966585,0.2816414,88210.0,88197.0,0.0001701]
[1766158966888,0.0113418,88209.0,88197.0,0.0001701]
[1766158967078,0.2816414,88210.0,88179.0,1.44768]
[1766158967279,0.0113427,88202.0,88177.0,0.0120258]
[1766158967478,0.00576,88201.0,88177.0,0.0120258]
[1766158967788,0.0113431,88199.0,88177.0,0.0120258]
[1766158968182,0.0001701,88197.0,88179.0,0.0001701]
[1766158968580,0.0113441,88192.0,88179.0,1e-07]
[1766158968780,0.00112,88191.0,88179.0,1e-07]
[1766158969880,0.0113446,88187.0,88179.0,1e-07]
[1766158970179,0.0124642,88191.0,88179.0,1e-07]
[1766158970379,0.00112,88191.0,88179.0,1e-07]
[1766158971688,0.0113442,88190.0,88179.0,1e-07]
[1766158971989,0.0113447,88187.0,88179.0,1e-07]
[1766158972780,0.0124642,88191.0,88179.0,1e-07]
[1766158973487,0.00112,88191.0,88179.0,1e-07]
[1766158974177,0.28163227,88190.0,88142.0,0.06107533]
[1766158974383,0.0113452,88183.0,88145.0,1.44724]
[1766158974681,0.011342,88207.0,88145.0,1.44724]
[1766158974682,0.0113438,88194.0,88170.0,0.0113467]
[1766158974981,0.00576,88193.0,88171.0,0.0113466]
[1766158975176,0.0001701,88191.0,88173.0,0.0001701]
[1766158975391,0.0113442,88190.0,88173.0,0.0001701]
[1766158976085,0.0113442,88190.0,88158.0,0.00576]
[1766158976086,0.0113457,88179.0,88158.0,0.00576]
[1766158976385,0.0113463,88174.0,88153.0,0.0113489]
[1766158976590,0.00384,88173.0,88153.0,0.0113489]
[1766158976980,0.00384,88173.0,88154.0,0.0001701]
[1766158977179,0.00384,88173.0,88155.0,0.0113487]
[1766158977180,0.0001701,88172.0,88155.0,0.0113487]
[1766158977391,0.0001701,88172.0,88154.0,0.0001701]
[1766158977591,0.0001701,88172.0,88154.0,0.0115189]
[1766158978393,0.0001701,88172.0,88154.0,0.0001701]
[1766158978904,0.0113474,88166.0,88154.0,0.0001701]
[1766158979187,0.00576,88165.0,88149.0,0.00576]
[1766158979594,0.0113476,88164.0,88142.0,0.0113504]
[1766158979786,0.00576,88165.0,88141.0,0.0113505]
[1766158979982,0.0113481,88160.0,88144.0,0.0001701]
[1766158980290,0.0113498,88147.0,88144.0,1e-07]
[1766158980490,0.0113493,88151.0,88131.0,0.0113518]
[1766158980694,0.00576,88157.0,88127.0,0.0113522]
[1766158980894,0.00576,88157.0,88126.0,1.44716]
[1766158981088,0.00576,88156.0,88126.0,1.44716]
[1766158981306,0.00576,88156.0,88140.0,0.0113506]
[1766158981592,0.00496,88160.0,88140.0,0.0113506]
[1766158981796,0.0113482,88159.0,88136.0,0.011351]
[1766158982394,0.0113486,88157.0,88136.0,0.011351]
[1766158982590,0.00496,88160.0,88134.0,0.0056]
[1766158982787,0.28163227,88150.0,88130.0,0.0113519]
[1766158982980,0.00172,88149.0,88126.0,0.00188]
[1766158984195,0.00172,88149.0,88133.0,0.0113514]
[1766158985192,0.0001701,88161.0,88126.0,0.00188]
[1766158985396,1e-07,88161.0,88158.0,0.0113483]
[1766158985585,1e-07,88161.0,88134.0,0.12203678]
[1766158985789,0.28163227,88150.0,88128.0,0.00576]
[1766158985985,0.0113534,88119.0,88072.0,1.44736]
[1766158986198,0.0113544,88111.0,88090.0,0.0113571]
[1766158986488,0.0113548,88108.0,88092.0,0.0001702]
[1766158986890,0.0001702,88109.0,88092.0,0.0001702]
[1766158986891,0.0113557,88101.0,88092.0,0.0001702]
[1766158987089,0.011357,88091.0,88072.0,1.44736]
[1766158987291,0.0113574,88088.0,88073.0,0.0008]
[1766158987492,0.0113572,88090.0,88073.0,0.0008]
[1766158987693,0.0113572,88090.0,88066.0,0.00248]
[1766158987892,0.0113575,88087.0,88066.0,0.00248]
[1766158988089,0.0113579,88084.0,88066.0,0.00248]
[1766158988683,0.00017031,88085.0,88066.0,0.00248]
[1766158988684,0.0113584,88081.0,88066.0,0.00248]
[1766158988889,0.00012317,88080.0,88066.0,0.00248]
[1766158989091,0.00012317,88080.0,88030.0,0.42540266]
[1766158989289,0.011359,88076.0,88050.0,1.44756]
[1766158990096,0.00012317,88080.0,88052.0,0.0113619]
[1766158990292,0.0113585,88079.0,88050.0,1.44756]
[1766158990490,0.00012317,88080.0,88057.0,0.0113612]
[1766158990890,0.00012317,88080.0,88052.0,0.00212]
[1766158990891,0.01148167,88080.0,88052.0,0.00212]
[1766158991096,0.0113599,88069.0,88043.0,0.011363]
[1766158991293,0.00017031,88065.0,88044.0,0.00576]
[1766158991488,0.00017031,88065.0,88046.0,0.0113627]
[1766158992791,0.00017031,88065.0,88030.0,0.01068589]
[1766158992792,0.00017031,88065.0,88020.0,8.884e-05]
[1766158992992,0.0113605,88064.0,88024.0,1.448]
[1766158993187,0.00017031,88065.0,88034.0,0.11356474]
[1766158993394,0.0113608,88062.0,88037.0,0.0113638]
[1766158993593,0.00014529,88061.0,88037.0,0.0113638]
[1766158994191,0.00014529,88061.0,88043.0,0.0113631]
[1766158994400,0.00014529,88061.0,88032.0,0.00576]
[1766158994401,0.00014529,88061.0,88038.0,0.0113638]
[1766158994599,0.00014529,88061.0,88041.0,0.0113633]
[1766158994899,3.1e-07,88065.0,88060.0,0.0113609]
[1766158995196,3.1e-07,88065.0,88054.0,0.00384]
[1766158995596,3.1e-07,88065.0,88061.0,0.0113607]
[1766158996000,7.825e-05,88064.0,88057.0,0.0113613]
[1766158996195,3.1e-07,88065.0,88060.0,0.0113609]
[1766158996599,3.1e-07,88065.0,88055.0,0.0113615]
[1766158996798,3.1e-07,88065.0,88058.0,0.0113611]
[1766158997007,3.1e-07,88065.0,88011.0,0.06107533]
[1766158997208,0.41403796,88050.0,88020.0,8.884e-05]
[1766158997409,0.0113606,88063.0,87998.0,0.00331483]
[1766158997410,0.41403796,88040.0,87998.0,0.00331483]
[1766158997596,0.41403796,88030.0,87998.0,0.00907483]
[1766158997791,0.00576,88029.0,87998.0,0.00907483]
[1766158997991,0.00017041,88022.0,88000.0,0.0113686]
[1766158998192,0.00017041,88022.0,88000.0,0.0103686]
[1766158998397,8.024e-05,88021.0,88000.0,0.0103686]
[1766158998798,4.1e-07,88022.0,88001.0,0.11361893]
[1766158999197,4.1e-07,88022.0,88001.0,0.0171285]
[1766158999396,4.1e-07,88022.0,88001.0,0.00576]
[1766158999804,4.1e-07,88022.0,88003.0,0.00017041]
[1766159000505,0.00576,88021.0,88008.0,0.0113675]
[1766159000698,4.1e-07,88022.0,88003.0,0.00017041]
[1766159001300,4.1e-07,88022.0,88013.0,0.011367]
[1766159001803,4.1e-07,88022.0,88014.0,0.0113669]
[1766159002193,4.1e-07,88022.0,88009.0,0.00576]
[1766159002399,4.1e-07,88022.0,88019.0,0.0113662]
[1766159002908,1.44888,88062.0,88037.0,0.0113639]
[1766159003110,0.00576,88061.0,88040.0,0.0113635]
[1766159003310,0.06170138,88069.0,88048.0,0.0113625]
[1766159003608,0.00576,88068.0,88047.0,0.0113626]
[1766159003796,0.0113604,88065.0,88049.0,0.00017041]
[1766159004210,0.01153061,88066.0,88049.0,0.00017041]
[1766159004412,0.0113606,88063.0,88049.0,0.00017041]
[1766159005104,0.0113604,88065.0,88035.0,0.00384]
[1766159005305,0.0113619,88054.0,88035.0,0.00384]
[1766159005509,0.00508,88053.0,88035.0,0.00384]
[1766159005904,0.01153071,88066.0,88035.0,0.00384]
[1766159006100,0.00392,88065.0,88045.0,0.0113628]
[1766159006305,0.01153071,88066.0,88045.0,0.0113628]
[1766159006306,0.00576,88064.0,88045.0,0.0113628]
[1766159007010,0.0171205,88064.0,88041.0,0.0113633]
[1766159007415,0.00576,88063.0,88035.0,0.00384]
[1766159007815,0.41403796,88060.0,88037.0,0.0113639]
[1766159008014,0.0113612,88058.0,88035.0,0.00384]
[1766159008217,0.0113617,88055.0,88035.0,0.00384]
[1766159008623,0.0113612,88058.0,88037.0,0.0113638]
[1766159009214,0.00576,88063.0,88035.0,0.00384]
[1766159010109,0.0113621,88052.0,88035.0,0.00384]
[1766159010721,0.002,88054.0,88035.0,0.00384]
[1766159010919,0.0113621,88052.0,88035.0,0.00384]
[1766159011514,0.0113624,88049.0,88035.0,0.00384]
[1766159011814,0.002,88054.0,88027.0,0.00396]
[1766159012017,0.00017041,88049.0,88030.0,0.0113647]
[1766159012319,0.00017041,88049.0,88029.0,0.0113649]
[1766159012519,0.0113625,88048.0,88027.0,0.00396]
[1766159013217,0.0113631,88044.0,88027.0,0.00396]
[1766159013419,0.00017041,88049.0,88027.0,0.00396]
[1766159014006,0.0113633,88042.0,88027.0,0.00396]
[1766159014519,0.0113633,88043.0,88027.0,0.00396]
[1766159014707,0.0171228,88046.0,88027.0,0.00396]
[1766159015020,4.1e-07,88049.0,88044.0,0.0113629]
[1766159015321,4.1e-07,88049.0,88042.0,0.0113632]
[1766159015509,4.1e-07,88049.0,88038.0,0.00576]
[1766159015714,4.1e-07,88049.0,88039.0,0.0113636]
[1766159016017,0.0113641,88036.0,87986.0,0.0113704]
[1766159016217,0.0390424,88035.0,87990.0,0.01137]
[1766159016517,0.0113659,88022.0,88001.0,0.0113685]
[1766159016708,0.0113663,88019.0,88001.0,0.00576]
[1766159016902,0.0113659,88023.0,88004.0,0.0113681]
[1766159017213,0.00017041,88022.0,88004.0,0.0113681]
[1766159017615,0.00017041,88022.0,88006.0,0.0113678]
[1766159018308,0.00017041,88022.0,88009.0,0.0113675]
[1766159018508,0.00017041,88022.0,88006.0,0.0113679]
[1766159018913,0.00017041,88022.0,88009.0,0.0113675]
[1766159019210,0.08887434,88043.0,87987.0,0.0113704]
[1766159019211,0.0042,88043.0,88016.0,0.0113666]
[1766159019513,0.02580978,88042.0,88016.0,0.00576]
[1766159019714,0.0113653,88027.0,88007.0,0.0113677]
[1766159019920,0.0171248,88031.0,88012.0,0.0113671]
[1766159020114,0.00017041,88030.0,88013.0,0.00017041]
[1766159021311,0.00017041,88030.0,88014.0,0.0113669]
[1766159021511,0.01153531,88030.0,88013.0,0.00017041]
[1766159022312,0.00017041,88030.0,88013.0,0.00017041]
[1766159022514,0.0113632,88043.0,88022.0,0.0113657]
[1766159022713,0.02965931,88042.0,88022.0,0.0113657]
[1766159022927,0.47469954,88060.0,88017.0,0.0113665]
[1766159022928,0.02581931,88041.0,88017.0,0.0113665]
[1766159023222,0.00576,88050.0,88030.0,0.0113647]
[1766159023423,0.0113626,88048.0,88027.0,0.0113652]
[1766159023617,0.00017041,88046.0,88029.0,0.00017041]
[1766159024213,0.02582776,88045.0,88029.0,0.01153531]
[1766159024413,0.011363,88045.0,88029.0,0.00017041]
[1766159024614,0.00017041,88046.0,88029.0,0.00017041]
[1766159024810,0.02582989,88045.0,88029.0,0.00017041]
[1766159025016,0.00017041,88046.0,88029.0,0.00017041]
[1766159025216,0.03719268,88045.0,88029.0,0.00017041]
[1766159025416,0.02582978,88044.0,88029.0,0.00017041]
[1766159026322,0.02582978,88044.0,88029.0,0.01157041]
[1766159026516,0.02582978,88043.0,88029.0,0.01157041]
[1766159026716,0.02582978,88042.0,88033.0,0.0113643]
[1766159026918,0.00017041,88046.0,88029.0,0.01157041]
[1766159027111,0.38096738,88135.0,88029.0,0.01157041]
[1766159027112,0.0113604,88065.0,88029.0,0.01157041]
[1766159027312,0.00232,88064.0,88030.0,0.12495404]
[1766159027518,0.0136806,88064.0,88044.0,0.0113629]
[1766159027726,0.0136805,88064.0,88041.0,0.0113634]
[1766159028122,0.0136805,88064.0,88039.0,0.00576]
[1766159028123,0.0113611,88059.0,88039.0,0.00576]
[1766159028828,0.00017041,88061.0,88039.0,0.00576]
[1766159029123,0.0113612,88059.0,88039.0,0.00576]
[1766159029431,0.00017041,88061.0,88039.0,0.00576]
[1766159029728,0.0113615,88056.0,88039.0,0.00576]
[1766159030127,0.00576,88055.0,88033.0,0.0113644]
[1766159030327,0.00576,88055.0,88033.0,0.00576]
[1766159030833,0.0113627,88047.0,88033.0,0.00576]
[1766159031023,0.00576,88046.0,88029.0,0.02293531]
[1766159031327,0.0113633,88043.0,88029.0,0.01157041]
[1766159031830,0.0113632,88043.0,88029.0,0.01157041]
[1766159032029,0.0113635,88041.0,88029.0,0.01157041]
[1766159032229,0.00576,88046.0,88029.0,0.01157041]
[1766159032230,0.0113631,88044.0,88029.0,0.01157041]
[1766159032623,0.00576,88046.0,88029.0,0.01157041]
[1766159032824,0.0113633,88042.0,88029.0,0.01157041]
[1766159033027,0.0113629,88045.0,88029.0,0.01157041]
[1766159033535,0.0171228,88046.0,88029.0,0.01157041]
[1766159033733,0.00576,88046.0,88029.0,0.01157041]
[1766159033936,0.00576,88046.0,88029.0,0.02293531]
[1766159034323,0.00576,88046.0,88029.0,0.01157041]
[1766159035433,0.0113636,88040.0,88029.0,0.01157041]
[1766159035933,0.01153361,88043.0,88029.0,0.01157041]
[1766159036129,0.0113635,88041.0,88029.0,0.01157041]
[1766159036628,0.0113634,88041.0,88029.0,0.01157041]
[1766159037025,0.0113633,88042.0,88029.0,0.01157041]
[1766159037227,0.00017041,88043.0,88029.0,0.01157041]
[1766159038129,0.0113633,88042.0,88029.0,0.01157041]
[1766159038526,0.00017041,88043.0,88029.0,0.01157041]
[1766159038925,0.0113633,88042.0,88029.0,0.01157041]
[1766159039425,0.00017041,88043.0,88029.0,0.01157041]
[1766159039825,0.01153361,88043.0,88029.0,0.01157041]
[1766159040226,0.00017041,88043.0,88029.0,0.01157041]
[1766159040828,0.0113636,88040.0,88029.0,0.01157041]
[1766159041331,0.00017041,88043.0,88029.0,0.01157041]
[1766159041728,0.0113636,88040.0,88029.0,0.01157041]
[1766159042124,0.0113639,88037.0,88029.0,0.01157041]
[1766159042424,0.41403796,88040.0,88001.0,0.08114829]
[1766159042624,0.0113651,88029.0,88002.0,1.45516]
[1766159042823,0.0113653,88027.0,88010.0,0.0113673]
[1766159043029,0.0113659,88022.0,88011.0,0.00576]
[1766159043226,0.0113655,88025.0,88011.0,0.00576]
[1766159043427,0.00017041,88027.0,88015.0,0.0113667]
[1766159043631,0.00017041,88027.0,88012.0,0.0113671]
[1766159043821,0.00017041,88027.0,88014.0,0.0113668]
[1766159044339,0.00017041,88027.0,88011.0,0.0171272]
[1766159046229,0.00017041,88027.0,88013.0,0.0113669]
[1766159046424,0.00017041,88027.0,88011.0,0.00576]
[1766159046629,0.00017041,88027.0,88012.0,0.0113671]
[1766159046832,4.1e-07,88027.0,88012.0,0.0113671]
[1766159047038,4.1e-07,88027.0,88009.0,0.00017041]
[1766159047039,0.0113664,88018.0,88009.0,0.00017041]
[1766159047234,4.1e-07,88027.0,88009.0,0.00017041]
[1766159047235,4.1e-07,88027.0,88009.0,1e-08]
[1766159047436,0.01136561,88027.0,88009.0,1e-08]
[1766159047630,0.0113669,88014.0,88009.0,1e-08]
[1766159047833,0.0113673,88011.0,88009.0,1e-08]
[1766159048135,0.0113673,88011.0,87985.0,1.44948]
[1766159048136,0.00576,88011.0,87985.0,1.44948]
[1766159048431,0.00576,88011.0,87991.0,0.0113699]
[1766159048631,0.0113666,88017.0,87996.0,0.0113691]
[1766159048834,0.00384,88023.0,87997.0,0.00384]
[1766159049138,4.1e-07,88019.0,88007.0,0.0113677]
[1766159049339,4.1e-07,88019.0,88001.0,0.00017041]
[1766159049731,4.1e-07,88019.0,88001.0,0.01153891]
[1766159049936,4.1e-07,88019.0,88001.0,0.00017041]
[1766159049937,0.0113669,88015.0,88001.0,0.00017041]
[1766159050136,0.0113672,88012.0,88001.0,0.00017041]
[1766159050339,0.0113668,88015.0,88001.0,0.00017041]
[1766159050735,4.1e-07,88019.0,88001.0,0.00017041]
[1766159051338,4.1e-07,88019.0,88017.0,0.0113664]
[1766159051540,4.1e-07,88019.0,88008.0,0.00576]
[1766159051940,4.1e-07,88019.0,88011.0,0.0113672]
[1766159052128,4.1e-07,88019.0,88008.0,0.0171277]
[1766159052333,4.1e-07,88019.0,88010.0,0.0113673]
[1766159052529,4.1e-07,88019.0,88018.0,0.0113664]
[1766159052730,1.44964,88056.0,88026.0,0.0113653]
[1766159052932,0.03140878,88055.0,88026.0,0.0113653]
[1766159053139,0.02564878,88054.0,88023.0,0.0113657]
[1766159053343,0.28274436,88050.0,88019.0,0.0113662]
[1766159053647,0.0113638,88039.0,88026.0,0.00017041]
[1766159053835,0.00576,88040.0,88026.0,0.00017041]
[1766159055649,0.00017041,88043.0,88033.0,0.0113644]
[1766159055941,4.1e-07,88043.0,88037.0,0.0113639]
[1766159056335,4.1e-07,88043.0,88033.0,0.0113643]
[1766159056848,4.1e-07,88043.0,88030.0,0.00576]
[1766159057047,4.1e-07,88043.0,88039.0,0.0113637]
[1766159057248,0.06066158,88094.0,88045.0,0.0113628]
[1766159057438,0.02565983,88093.0,88050.0,0.28274436]
[1766159057639,0.0113578,88085.0,88058.0,0.0113612]
[1766159057832,0.00576,88084.0,88065.0,0.0113603]
[1766159058046,0.00576,88084.0,88059.0,0.011361]
[1766159058243,1e-08,88080.0,88063.0,0.00017031]
[1766159058448,0.0113546,88110.0,88070.0,0.28274436]
[1766159058737,0.28274436,88100.0,88071.0,0.00136]
[1766159058944,0.00576,88103.0,88083.0,0.0113579]
[1766159059146,0.0113557,88101.0,88071.0,0.00136]
[1766159059338,0.28274436,88110.0,88071.0,0.00136]
[1766159059647,0.00017031,88095.0,88077.0,0.00017031]
[1766159060242,3.1e-07,88095.0,88080.0,0.0113583]
[1766159060544,3.1e-07,88095.0,88077.0,0.00017031]
[1766159060945,0.28274436,88090.0,88046.0,1.4494]
[1766159061149,0.00204,88094.0,88046.0,1.4494]
[1766159061150,0.0113587,88078.0,88054.0,0.0113616]
[1766159061449,0.00576,88082.0,88047.0,0.00576]
[1766159061652,0.0171182,88082.0,88057.0,0.0113613]
[1766159061834,0.00017031,88078.0,88061.0,0.00017031]
[1766159062450,0.00017031,88078.0,88065.0,0.0113602]
[1766159062648,0.00017031,88078.0,88061.0,0.00017031]
[1766159062948,0.00017031,88078.0,88065.0,0.0113602]
[1766159063554,0.00017031,88078.0,88061.0,0.00017031]
[1766159063740,0.00017031,88078.0,88068.0,0.0113599]
[1766159064052,0.0113561,88098.0,88072.0,0.0113593]
[1766159064351,0.0113566,88095.0,88071.0,0.0113594]
[1766159064554,0.0113566,88095.0,88072.0,0.00576]
[1766159065141,0.00011301,88092.0,88076.0,0.0113589]
[1766159065350,0.00011301,88092.0,88075.0,0.00017031]
[1766159065551,0.00011301,88092.0,88075.0,0.01152931]
[1766159066153,0.00011301,88092.0,88081.0,0.0113582]
[1766159066352,0.00011301,88092.0,88075.0,0.00017031]
[1766159066549,0.011357,88091.0,88075.0,0.00017031]
[1766159066848,0.00011301,88092.0,88075.0,0.00017031]
[1766159068245,0.01146991,88092.0,88075.0,0.00017031]
[1766159068752,0.0113573,88089.0,88075.0,0.00017031]
[1766159069149,0.00011301,88092.0,88075.0,0.00017031]
[1766159069355,0.0113574,88088.0,88075.0,0.00017031]
[1766159069554,0.00011301,88092.0,88069.0,0.00136]
[1766159069855,0.0113582,88082.0,88062.0,0.0113607]
[1766159070252,0.00576,88084.0,88061.0,0.00212]
[1766159070549,0.00017031,88081.0,88066.0,0.0113601]
[1766159070744,0.00017031,88081.0,88064.0,0.00017031]
[1766159070943,1e-08,88081.0,88064.0,0.00017031]
[1766159071350,1e-08,88081.0,88079.0,0.0113584]
[1766159071744,0.0002,88094.0,88073.0,0.00576]
[1766159071945,0.0113544,88112.0,88092.0,0.0113568]
[1766159072149,0.0113515,88134.0,88086.0,0.00576]
[1766159072349,0.0113525,88126.0,88090.0,0.28274436]
[1766159072557,0.0113525,88126.0,88091.0,1.45468]
[1766159072751,0.00011301,88117.0,88104.0,0.0113552]
[1766159072951,0.00011301,88117.0,88105.0,0.00576]
[1766159073151,0.00011301,88117.0,88100.0,0.01152611]
[1766159073450,0.00011301,88117.0,88106.0,0.00576]
[1766159075048,0.00011301,88117.0,88100.0,0.00017031]
[1766159075245,0.00011301,88117.0,88100.0,3.1e-07]
[1766159075246,0.0113547,88109.0,88100.0,3.1e-07]
[1766159075444,0.0113542,88113.0,88100.0,3.1e-07]
[1766159075856,0.0113545,88111.0,88100.0,3.1e-07]
[1766159076158,0.0113555,88103.0,88093.0,0.00576]
[1766159076350,0.011355,88107.0,88093.0,0.00576]
[1766159076656,0.00587301,88117.0,88093.0,0.00576]
[1766159077049,0.0113547,88109.0,88096.0,0.00017031]
[1766159077256,0.0113553,88105.0,88096.0,0.00017031]
[1766159078452,0.00011301,88117.0,88102.0,0.0113554]
[1766159078651,0.00011301,88117.0,88104.0,0.0113552]
[1766159078853,0.00011301,88117.0,88101.0,0.0113556]
[1766159079056,0.00011301,88117.0,88102.0,0.0113555]
[1766159079259,0.00011301,88117.0,88102.0,0.00576]
[1766159079449,0.00011301,88117.0,88106.0,0.011355]
[1766159080461,0.00011301,88117.0,88102.0,0.00576]
[1766159080648,0.00011301,88117.0,88105.0,0.0113551]
[1766159081250,0.00011301,88117.0,88102.0,0.00576]
[1766159081450,0.00011301,88117.0,88104.0,0.0113552]
[1766159081846,3.01e-06,88117.0,88100.0,0.00576]
[1766159082052,3.01e-06,88117.0,88110.0,0.0113544]
[1766159083257,3.01e-06,88117.0,88096.0,0.00017031]
[1766159083447,3.01e-06,88117.0,88097.0,0.00576]
[1766159083646,3.01e-06,88117.0,88105.0,0.0113551]
[1766159084048,3.01e-06,88117.0,88107.0,0.0113548]
[1766159084251,3.01e-06,88117.0,88102.0,0.0113555]
[1766159084448,0.01135671,88117.0,88101.0,0.0113556]
[1766159084756,3.01e-06,88117.0,88101.0,0.0113556]
[1766159084956,3.01e-06,88117.0,88103.0,0.0113553]
[1766159086062,3.01e-06,88117.0,88104.0,0.00576]
[1766159086260,3.01e-06,88117.0,88108.0,0.0113547]
[1766159086749,0.0113537,88116.0,88104.0,0.00576]
[1766159086950,0.0113541,88113.0,88104.0,0.00576]
[1766159087258,0.0113541,88113.0,88102.0,0.00576]
[1766159087457,0.0113538,88116.0,88102.0,0.00576]
[1766159087660,3.01e-06,88117.0,88103.0,0.0113554]
[1766159088057,0.01135671,88117.0,88102.0,0.00576]
[1766159088365,0.01135671,88117.0,88096.0,3.1e-07]
[1766159088366,0.0113555,88103.0,88096.0,3.1e-07]
[1766159088555,0.0113539,88115.0,88096.0,3.1e-07]
[1766159088756,0.011356,88099.0,88096.0,3.1e-07]
[1766159088969,0.0113566,88094.0,88073.0,0.07380114]
[1766159089168,0.0113569,88092.0,88075.0,0.011359]
[1766159089958,0.01152721,88092.0,88075.0,0.01152931]
[1766159090253,0.01152721,88092.0,88075.0,0.01728931]
[1766159090763,0.0113572,88090.0,88075.0,0.00593031]
[1766159092068,0.00017031,88092.0,88075.0,0.00593031]
[1766159092570,0.00017031,88092.0,88076.0,0.0113589]
[1766159094362,0.00017031,88092.0,88079.0,0.0113585]
[1766159096371,3.1e-07,88092.0,88079.0,0.0113585]
[1766159096956,3.1e-07,88092.0,88075.0,0.00593031]
[1766159097764,3.1e-07,88092.0,88080.0,0.0113583]
[1766159097965,3.1e-07,88092.0,88077.0,0.0113587]
[1766159098165,0.0113576,88086.0,88075.0,0.00593031]
[1766159098463,0.01135721,88092.0,88075.0,0.01728931]
[1766159098970,0.0113574,88088.0,88075.0,0.00593031]
[1766159100263,3.1e-07,88092.0,88075.0,0.00593031]
[1766159100569,3.1e-07,88092.0,88081.0,0.0113582]
[1766159100763,3.1e-07,88092.0,88075.0,0.00593031]
[1766159101474,3.1e-07,88092.0,88078.0,0.0113586]
[1766159101771,3.1e-07,88092.0,88076.0,0.00576]
[1766159102454,0.06066158,88119.0,88076.0,0.00576]
[1766159102455,0.00036,88109.0,88080.0,0.28274436]
[1766159102656,0.0113541,88113.0,88096.0,0.0113563]
[1766159102863,0.02582082,88112.0,88093.0,0.00576]
[1766159103069,0.00012,88114.0,88093.0,0.00576]
[1766159103274,0.02583011,88113.0,88093.0,0.00576]
[1766159103475,0.06066158,88133.0,88110.0,0.0113544]
[1766159103672,0.0113523,88128.0,88110.0,0.0113545]
[1766159103876,0.0113525,88126.0,88107.0,0.0171148]
[1766159104062,0.00576,88132.0,88107.0,0.00576]
[1766159104575,0.0113526,88126.0,88108.0,0.0113547]
[1766159104771,0.0113526,88126.0,88111.0,0.00017021]
[1766159105162,0.0113533,88120.0,88111.0,0.00017021]
[1766159105364,0.00576,88132.0,88111.0,0.00017021]
[1766159106076,0.0113523,88128.0,88111.0,0.01152451]
[1766159106867,0.00576,88132.0,88111.0,0.00017021]
[1766159107068,0.0113527,88124.0,88111.0,0.00017021]
[1766159107565,0.0113524,88127.0,88111.0,0.00017021]
[1766159107766,0.0113527,88125.0,88111.0,0.00017021]
[1766159108383,0.0113531,88121.0,88111.0,0.00017021]
[1766159108674,0.0113535,88118.0,88100.0,0.0113557]
[1766159108877,0.28274436,88120.0,88083.0,1.4484]
[1766159109072,0.28274436,88120.0,88089.0,0.0113572]
[1766159109269,0.0113557,88102.0,88085.0,1.4484]
[1766159109469,0.41966398,88110.0,88085.0,0.00576]
[1766159109669,0.00017021,88106.0,88089.0,0.00017021]
[1766159110074,0.00017021,88106.0,88092.0,0.0113567]
[1766159110674,0.00017021,88106.0,88089.0,0.00017021]
[1766159110981,0.0113554,88103.0,88089.0,0.00017021]
[1766159111177,0.0113557,88101.0,88089.0,0.00017021]
[1766159111581,0.00017021,88106.0,88089.0,0.00017021]
[1766159111879,0.00017021,88106.0,88091.0,0.0113568]
[1766159112480,0.00017021,88106.0,88089.0,0.00017021]
[1766159112978,0.00017021,88106.0,88089.0,0.01152731]
[1766159113280,0.00017021,88106.0,88089.0,0.00017021]
[1766159114672,0.00017021,88106.0,88089.0,0.01152731]
[1766159114867,0.00017021,88106.0,88089.0,0.00017021]
[1766159115369,0.00017021,88106.0,88095.0,0.0113563]
[1766159115580,0.00017021,88106.0,88092.0,0.0113568]
[1766159115776,2.1e-07,88106.0,88092.0,0.0113568]
[1766159115981,0.0113557,88102.0,88089.0,0.00017021]
[1766159116577,0.0113557,88102.0,88065.0,0.08894098]
[1766159116578,0.00576,88101.0,88058.0,0.08097796]
[1766159116783,0.00576,88101.0,88045.0,0.0113628]
[1766159116784,0.4395917,88100.0,88061.0,0.0113608]
[1766159116972,0.0113583,88081.0,88063.0,0.0113605]
[1766159117173,0.0113583,88081.0,88061.0,0.0113608]
[1766159117667,0.00017031,88080.0,88063.0,0.0113605]
[1766159118074,0.00017031,88080.0,88065.0,0.0113602]
[1766159118472,0.00017031,88080.0,88062.0,0.00017031]
[1766159118673,0.00017031,88080.0,88062.0,0.01153101]
[1766159118874,0.00017031,88080.0,88064.0,0.0113603]
[1766159119185,0.01152871,88080.0,88062.0,0.00017031]
[1766159119484,0.01152871,88080.0,88063.0,0.00576]
[1766159119679,0.00017031,88080.0,88064.0,0.0113604]
[1766159120270,0.00017031,88080.0,88063.0,0.00576]
[1766159120480,0.00017031,88080.0,88071.0,0.0113595]
[1766159120983,0.00017031,88080.0,88063.0,0.00576]
[1766159121177,0.0113588,88077.0,88063.0,0.00576]
[1766159121485,0.0113586,88079.0,88063.0,0.00576]
[1766159121685,0.0113589,88077.0,88063.0,0.00576]
[1766159122486,0.01152871,88080.0,88064.0,0.0113604]
[1766159122875,0.00017031,88080.0,88064.0,0.0113604]
[1766159123283,0.00017031,88080.0,88063.0,0.00576]
[1766159123585,0.00017031,88080.0,88065.0,0.0113602]
[1766159123983,0.00017031,88080.0,88067.0,0.0113599]
[1766159124180,3.1e-07,88080.0,88063.0,0.00576]
[1766159124380,3.1e-07,88080.0,88072.0,0.0113594]
[1766159124586,3.1e-07,88080.0,88075.0,0.011359]
[1766159124793,3.1e-07,88080.0,88077.0,0.0113586]
[1766159125295,3.1e-07,88080.0,88064.0,0.0113604]
[1766159125296,0.0113559,88100.0,88084.0,0.0113578]
[1766159125488,0.00024,88099.0,88084.0,0.0113578]
[1766159125783,0.00024,88099.0,88077.0,0.00576]
[1766159125990,0.00024,88099.0,88059.0,0.06304038]
[1766159126183,0.00024,88099.0,88060.0,1.4544]
[1766159126388,0.0113575,88087.0,88071.0,0.00017031]
[1766159126680,0.00024,88099.0,88071.0,0.00017031]
[1766159126681,0.00024,88099.0,88072.0,0.00576]
[1766159127078,0.0113574,88088.0,88072.0,0.00576]
[1766159127481,0.0113564,88096.0,88072.0,0.00576]
[1766159127680,0.00024,88099.0,88083.0,0.0113579]
[1766159127877,0.0113559,88099.0,88083.0,0.0113579]
[1766159128193,0.0113556,88102.0,88072.0,0.00576]
[1766159128487,0.0038,88101.0,88083.0,0.0113579]
[1766159128688,0.0113558,88100.0,88083.0,0.0113579]